bitfinex-derivatives/quotes_ETHF0:USTF0_20260315
["timestamp","ask_amount","ask_price","bid_price","bid_amount"]
[1773617665311,14.31353607,2169.5,2168.7,13.91737135]
[1773617665712,16.3783034,2169.4,2168.7,13.91737135]
[1773617666114,14.31353607,2169.4,2168.7,13.91737135]
[1773617666315,2.06476733,2169.3,2168.7,13.91737135]
[1773617666515,14.31353607,2169.4,2168.7,13.91737135]
[1773617666715,0.00362513,2169.7,2168.7,13.91737135]
[1773617666716,14.31353607,2169.1,2168.7,13.91737135]
[1773617667415,2.06476733,2169.0,2168.7,13.91737135]
[1773617667617,14.31353607,2169.3,2168.7,13.91737135]
[1773617667914,14.31353607,2169.5,2168.7,13.91737135]
[1773617668312,2.06476733,2169.4,2168.7,13.91737135]
[1773617668513,31.8981612,2169.7,2168.7,13.91737135]
[1773617670724,33.96292853,2169.7,2168.7,13.91737135]
[1773617670926,14.31353607,2169.6,2168.7,13.91737135]
[1773617671322,16.3783034,2169.6,2168.7,13.91737135]
[1773617671525,14.31353607,2169.6,2168.7,13.91737135]
[1773617671725,16.3783034,2169.5,2168.7,13.91737135]
[1773617671926,0.00362513,2169.7,2168.7,14.14788135]
[1773617672616,31.90953607,2170.3,2169.3,13.91737135]
[1773617672823,17.596,2170.3,2169.5,13.91737135]
[1773617673422,14.31353607,2170.5,2169.5,13.91737135]
[1773617673623,16.3783034,2170.4,2169.5,13.91737135]
[1773617674026,0.00328659,2170.5,2169.5,13.91737135]
[1773617674224,2.06476733,2170.4,2169.5,13.91737135]
[1773617674625,2.06476733,2170.3,2169.5,13.91737135]
[1773617674823,0.00328659,2170.5,2169.5,13.91737135]
[1773617675335,2.06805392,2170.5,2169.5,13.91737135]
[1773617675530,0.00328659,2170.5,2169.5,13.91737135]
[1773617675727,0.00328659,2170.5,2169.9,13.91737135]
[1773617676126,14.31353607,2171.0,2170.1,13.91737135]
[1773617676429,14.31353607,2171.2,2170.1,13.91737135]
[1773617676632,14.31353607,2171.1,2170.1,13.91737135]
[1773617677029,2.06476733,2170.7,2170.1,13.91737135]
[1773617677230,0.00475526,2170.7,2170.1,13.91737135]
[1773617677527,14.31353607,2171.1,2170.1,13.91737135]
[1773617677730,14.31353607,2171.4,2170.1,13.91737135]
[1773617677931,14.31353607,2171.2,2170.1,13.91737135]
[1773617678733,14.31784412,2171.2,2170.1,13.91737135]
[1773617681236,14.31353607,2171.0,2170.1,13.91737135]
[1773617683033,14.31784412,2171.2,2170.3,13.91737135]
[1773617683232,14.31784412,2171.2,2170.3,13.92231133]
[1773617683532,14.31784412,2171.2,2169.8,13.91737135]
[1773617683835,14.31353607,2170.9,2169.8,13.91737135]
[1773617684036,14.31353607,2170.7,2169.8,13.91737135]
[1773617684435,14.31353607,2170.5,2169.3,13.91737135]
[1773617685440,14.31353607,2170.5,2169.3,13.92101365]
[1773617687542,14.31353607,2170.5,2169.3,0.0036423]
[1773617688042,17.599,2170.4,2169.3,13.92101365]
[1773617688242,14.31353607,2170.3,2169.3,13.92101365]
[1773617690140,14.31353607,2170.3,2169.5,13.91737135]
[1773617690343,14.31353607,2170.5,2169.5,13.91737135]
[1773617691142,14.31353607,2170.8,2169.7,13.91737135]
[1773617691342,0.00430805,2171.2,2169.9,13.91737135]
[1773617691343,14.31353607,2171.1,2169.9,13.91737135]
[1773617691642,14.31784412,2171.2,2170.3,13.91737135]
[1773617695147,14.31784412,2171.2,2169.9,14.60332737]
[1773617695548,13.2841511,2171.0,2169.9,14.60332737]
[1773617695742,13.2841511,2170.8,2169.9,14.60332737]
[1773617698145,13.2841511,2170.8,2169.6,14.60332737]
[1773617700354,13.2841511,2170.7,2169.6,14.60332737]
[1773617701349,13.2841511,2170.7,2169.3,0.0036423]
[1773617701350,13.2841511,2170.7,2169.4,14.60332737]
[1773617701550,13.2841511,2170.5,2169.4,14.60332737]
[1773617702242,13.2841511,2170.3,2169.3,0.0036423]
[1773617702646,13.2841511,2170.1,2169.3,14.60696967]
[1773617702851,13.2841511,2170.3,2169.3,14.60696967]
[1773617703150,13.2841511,2170.3,2169.3,14.83740967]
[1773617703350,13.2841511,2170.5,2169.3,14.83740967]
[1773617703952,13.2841511,2170.9,2169.9,14.60332737]
[1773617705354,13.2841511,2170.9,2170.0,0.23038]
[1773617705550,13.2841511,2170.9,2170.1,14.60332737]
[1773617708858,13.2841511,2170.9,2169.6,14.60332737]
[1773617709259,13.2841511,2171.1,2169.8,14.60332737]
[1773617709454,13.2841511,2171.1,2170.0,14.60332737]
[1773617710558,13.2841511,2171.1,2170.2,14.60332737]
[1773617711054,13.2841511,2171.5,2170.6,14.60332737]
[1773617711258,12.90488462,2171.5,2170.6,14.60332737]
[1773617711855,13.2841511,2171.9,2170.6,14.60332737]
[1773617712158,13.28864277,2171.9,2170.8,14.60332737]
[1773617712361,13.28864277,2171.9,2171.0,14.60332737]
[1773617712556,13.2841511,2172.5,2171.2,14.60332737]
[1773617712855,13.2841511,2173.2,2171.8,14.60332737]
[1773617713049,13.2841511,2172.8,2171.8,14.60332737]
[1773617713756,13.28971101,2172.8,2171.8,14.60332737]
[1773617715459,0.00555991,2172.8,2171.8,14.60332737]
[1773617715660,13.2841511,2173.2,2172.0,14.60332737]
[1773617716257,13.2841511,2173.4,2172.2,14.60332737]
[1773617716453,13.2841511,2173.4,2172.4,14.60332737]
[1773617716661,0.00481584,2173.4,2172.4,14.60332737]
[1773617717764,0.00481584,2173.4,2172.6,14.60332737]
[1773617717963,0.00481584,2173.4,2172.6,14.60685759]
[1773617718864,13.2841511,2173.8,2172.6,14.60685759]
[1773617719763,13.2841511,2173.8,2172.8,14.60332737]
[1773617719963,13.2841511,2174.0,2172.8,14.60332737]
[1773617720561,13.2841511,2174.0,2173.0,14.60332737]
[1773617721063,13.28825394,2174.0,2172.7,14.60332737]
[1773617721959,13.6772868,2173.8,2172.6,0.00353022]
[1773617723764,13.9072668,2173.8,2172.6,0.00353022]
[1773617724655,13.9072668,2173.8,2172.6,13.93529716]
[1773617724865,13.6772868,2173.8,2172.6,13.93529716]
[1773617725963,13.6772868,2173.8,2172.6,0.00353022]
[1773617730564,13.6772868,2173.8,2172.6,13.93529716]
[1773617731266,13.6772868,2173.8,2172.6,0.00353022]
[1773617731669,13.6772868,2173.6,2172.6,0.00353022]
[1773617733067,13.6772868,2173.4,2172.6,0.00353022]
[1773617733268,13.6772868,2173.2,2172.6,0.00353022]
[1773617734167,13.6772868,2173.2,2172.2,13.93176694]
[1773617734368,13.9073268,2173.2,2171.7,13.93176694]
[1773617735369,13.6772868,2173.2,2171.9,13.93176694]
[1773617735565,13.6772868,2173.1,2171.9,13.93176694]
[1773617736874,13.6772868,2173.1,2172.1,13.93176694]
[1773617741385,13.6772868,2172.9,2171.8,13.93176694]
[1773617741679,13.6772868,2172.7,2171.7,0.00403328]
[1773617741883,13.6772868,2172.5,2171.7,0.00403328]
[1773617742180,13.9074168,2172.3,2171.1,13.93176694]
[1773617742781,13.6772868,2172.1,2171.1,13.93176694]
[1773617742982,13.6772868,2171.9,2170.6,13.93176694]
[1773617743181,13.6772868,2171.9,2171.1,0.0052135]
[1773617744782,13.6772868,2171.9,2170.8,13.93176694]
[1773617745383,13.6772868,2171.8,2170.8,13.93176694]
[1773617745783,13.6772868,2171.8,2170.8,13.93627505]
[1773617747581,13.6772868,2171.8,2170.8,0.00450811]
[1773617748888,13.6772868,2171.6,2170.4,13.93176694]
[1773617749682,13.6772868,2171.4,2170.4,13.93773996]
[1773617749985,13.6772868,2171.4,2170.4,0.00597302]
[1773617749986,13.6772868,2171.2,2170.4,0.00597302]
[1773617750484,13.6772868,2171.2,2170.0,13.93176694]
[1773617751385,14.04872233,2171.2,2170.0,13.93176694]
[1773617751583,14.04872233,2171.2,2170.0,13.93587757]
[1773617755597,13.55622962,2170.9,2170.0,13.93587757]
[1773617755789,13.55622962,2170.7,2170.0,13.93587757]
[1773617756494,17.94443553,2171.2,2170.0,13.93587757]
[1773617756694,13.55622962,2171.1,2170.0,13.93587757]
[1773617762205,13.55622962,2170.9,2170.0,0.00411063]
[1773617762702,13.55622962,2170.5,2169.3,14.32137553]
[1773617763001,13.55622962,2170.3,2168.8,14.32137553]
[1773617763604,13.55622962,2170.1,2169.0,14.32137553]
[1773617763902,13.55622962,2170.1,2169.2,14.32137553]
[1773617764304,13.5620612,2170.3,2169.4,14.32137553]
[1773617765203,13.5620612,2170.3,2168.8,0.23584632]
[1773617765204,13.7924112,2170.3,2168.9,14.32137553]
[1773617765398,13.5620612,2170.3,2168.9,14.32137553]
[1773617765601,13.5620612,2170.3,2168.8,0.23584632]
[1773617765602,31.15722962,2170.2,2169.1,14.32137553]
[1773617766107,13.55622962,2170.1,2169.1,14.32137553]
[1773617766803,17.601,2170.2,2169.1,14.32137553]
[1773617767204,13.55622962,2170.1,2169.1,14.32137553]
[1773617771204,13.55622962,2170.1,2168.8,0.00534632]
[1773617771205,13.55622962,2170.1,2168.2,7.21879454]
[1773617771401,13.55622962,2170.1,2167.0,4.611]
[1773617771402,13.55622962,2168.6,2167.1,14.32137553]
[1773617771601,13.55622962,2168.4,2167.1,14.32137553]
[1773617771805,17.543,2168.5,2165.7,11.52239691]
[1773617771806,13.55622962,2168.2,2166.4,14.32137553]
[1773617772004,13.55622962,2168.0,2166.4,14.32137553]
[1773617772301,0.00504675,2168.0,2166.7,14.32137553]
[1773617772503,13.92228101,2168.0,2166.7,14.32137553]
[1773617773305,13.56127637,2168.0,2166.7,14.32137553]
[1773617773707,13.55622962,2167.8,2166.7,14.32137553]
[1773617774200,13.9287262,2168.0,2166.7,14.32137553]
[1773617774706,13.56127637,2168.0,2166.7,14.32137553]
[1773617774903,0.00504675,2168.0,2166.7,16.80495352]
[1773617775206,13.56127637,2168.0,2166.7,14.32137553]
[1773617776810,0.00504675,2168.0,2166.7,14.32137553]
[1773617777005,13.56127637,2168.0,2166.7,14.32137553]
[1773617778910,13.55622962,2168.3,2166.7,16.80495352]
[1773617779213,13.55622962,2168.7,2166.8,14.32137553]
[1773617779614,13.55622962,2168.6,2166.8,14.32137553]
[1773617780010,13.93617196,2168.6,2166.8,14.32137553]
[1773617780710,13.56028733,2168.6,2167.2,14.32137553]
[1773617781305,13.55622962,2168.4,2167.2,14.32137553]
[1773617782015,17.272,2169.1,2167.2,14.32137553]
[1773617782016,14.67170571,2169.8,2168.2,14.61902663]
[1773617783012,14.67707838,2169.8,2168.2,14.62322508]
[1773617784016,14.67170571,2169.7,2168.2,14.62322508]
[1773617788427,0.00537267,2169.8,2168.2,14.62322508]
[1773617788428,14.67170571,2169.5,2168.2,14.62322508]
[1773617788923,14.67170571,2169.3,2168.2,14.62322508]
[1773617789124,14.67170571,2169.1,2168.2,14.62322508]
[1773617789324,14.67170571,2169.1,2168.2,0.00419845]
[1773617789920,14.67170571,2169.1,2168.2,14.62322508]
[1773617791019,14.67170571,2168.9,2168.2,0.00419845]
[1773617791221,14.67170571,2168.9,2167.8,14.61902663]
[1773617791420,14.67170571,2168.9,2166.5,0.36354674]
[1773617791421,14.67170571,2168.7,2167.0,14.61902663]
[1773617791622,14.67170571,2168.5,2167.0,14.61902663]
[1773617792219,14.67170571,2168.5,2167.0,14.62312935]
[1773617795329,14.67170571,2168.3,2167.0,14.62312935]
[1773617796934,14.67170571,2168.5,2167.2,14.61902663]
[1773617797131,14.67170571,2168.9,2167.2,14.61902663]
[1773617798035,14.67170571,2168.9,2167.4,14.61902663]
[1773617798635,14.67170571,2168.9,2167.6,14.61902663]
[1773617804643,14.67170571,2168.9,2167.7,14.61902663]
[1773617807240,2.48357799,2169.5,2167.7,14.61902663]
[1773617807241,14.67170571,2168.7,2167.7,14.61902663]
[1773617807444,14.67170571,2168.1,2167.0,7.22289726]
[1773617807647,14.6754108,2168.1,2167.0,14.62312935]
[1773617807844,14.6754108,2168.1,2167.0,0.00410272]
[1773617807845,14.67170571,2167.9,2167.0,0.00410272]
[1773617810851,14.67170571,2167.9,2167.0,14.62312935]
[1773617813350,14.67170571,2167.9,2167.0,0.00410272]
[1773617815856,13.98923583,2167.7,2166.2,13.51131082]
[1773617816353,13.98923583,2167.5,2166.2,13.51131082]
[1773617816744,13.98923583,2167.5,2166.2,13.51688179]
[1773617818054,14.35552233,2167.5,2166.2,13.51688179]
[1773617818451,13.98923583,2167.5,2166.2,13.51688179]
[1773617818954,13.98923583,2168.0,2166.2,13.74766179]
[1773617819257,13.98923583,2168.0,2166.8,13.51131082]
[1773617820551,0.00370509,2168.1,2167.0,13.51131082]
[1773617820854,13.99294092,2168.1,2167.1,13.51131082]
[1773617822551,0.00370509,2168.1,2167.3,13.51131082]
[1773617822751,5.74003381,2169.7,2166.7,25.35779454]
[1773617822752,13.98923583,2168.5,2167.5,13.51131082]
[1773617822954,0.23043,2169.5,2167.6,13.51131082]
[1773617822955,13.98923583,2169.4,2167.6,13.51131082]
[1773617823160,13.98923583,2169.2,2167.6,13.51131082]
[1773617823752,13.99277102,2169.2,2167.6,13.51131082]
[1773617824058,14.36005474,2169.2,2167.6,13.51131082]
[1773617827855,14.36005474,2169.2,2167.8,13.51131082]
[1773617828050,14.36005474,2169.2,2167.8,13.5163301]
[1773617829356,13.99277102,2169.2,2168.0,13.51131082]
[1773617829853,13.98923583,2169.0,2167.8,13.5163301]
[1773617830662,13.98923583,2169.0,2167.8,0.00501928]
[1773617831262,13.98923583,2168.8,2167.8,0.00501928]
[1773617831464,0.23049,2168.9,2167.0,25.21479454]
[1773617831465,13.98923583,2168.6,2167.4,13.51131082]
[1773617832358,13.98923583,2168.4,2167.4,0.00585922]
[1773617833264,13.98923583,2168.2,2167.4,0.00585922]
[1773617833558,13.98923583,2168.2,2167.0,13.51131082]
[1773617834361,13.98923583,2168.2,2167.0,13.51645117]
[1773617844774,13.98923583,2168.2,2167.2,14.28503174]
[1773617845473,13.89893367,2168.7,2167.4,14.28503174]
[1773617852372,13.89893367,2168.7,2167.5,14.28503174]
[1773617854084,13.89893367,2168.9,2167.7,14.28503174]
[1773617854379,13.89893367,2168.5,2167.2,7.21879454]
[1773617854580,13.89893367,2168.3,2167.1,14.28503174]
[1773617856277,13.89893367,2168.3,2167.0,14.29017209]
[1773617858873,13.89893367,2168.3,2167.1,0.23068]
[1773617859175,13.89893367,2168.3,2167.2,14.28503174]
[1773617862576,13.89893367,2168.3,2167.0,21.50896663]
[1773617862781,13.89893367,2168.3,2167.1,14.28503174]
[1773617865084,13.89893367,2168.1,2167.0,14.29017209]
[1773617869492,13.89893367,2168.1,2166.6,21.50382628]
[1773617869781,3.7691858,2168.5,2165.5,12.684]
[1773617869782,13.89893367,2167.1,2165.9,14.28503174]
[1773617870585,13.90466442,2167.1,2165.9,14.290199]
[1773617872990,0.00573075,2167.1,2166.1,12.95169223]
[1773617873286,0.00573075,2167.1,2166.3,13.07288668]
[1773617874788,0.00573075,2167.1,2166.5,13.07288668]
[1773617875290,12.92944159,2167.1,2166.5,13.07288668]
[1773617875492,12.92944159,2167.1,2166.3,13.07288668]
[1773617875691,12.92944159,2167.1,2166.0,13.07288668]
[1773617876596,12.92944159,2167.1,2166.2,13.07288668]
[1773617881202,0.00573075,2167.1,2166.2,13.07288668]
[1773617881402,12.92371084,2167.3,2166.2,13.07288668]
[1773617881703,12.92371084,2167.9,2166.4,13.07288668]
[1773617881903,12.92371084,2167.9,2166.6,13.07288668]
[1773617882402,12.92849983,2167.9,2166.6,13.07288668]
[1773617886301,12.92849983,2167.9,2166.8,13.30359668]
[1773617886603,12.92371084,2168.3,2167.4,13.07288668]
[1773617886808,6.10978086,2169.2,2167.8,13.07288668]
[1773617886809,12.92371084,2169.0,2167.8,13.07288668]
[1773617887001,12.92371084,2169.0,2168.0,13.07288668]
[1773617887598,12.92880303,2169.0,2168.2,13.07288668]
[1773617891709,12.92371084,2167.7,2166.4,13.07288668]
[1773617892604,12.92371084,2167.7,2166.4,13.07715281]
[1773617893212,12.92371084,2167.5,2166.4,13.07715281]
[1773617893508,12.92371084,2167.5,2166.4,0.00426613]
[1773617893906,12.92371084,2167.5,2166.4,13.07715281]
[1773617896211,3.76189284,2168.4,2166.4,13.30790281]
[1773617896212,12.92371084,2167.7,2166.4,13.30790281]
[1773617897512,12.92371084,2167.4,2166.4,0.00426613]
[1773617897710,12.92874303,2167.4,2166.4,0.00426613]
[1773617900813,12.92874303,2167.4,2166.4,13.07715281]
[1773617904009,0.00503219,2167.4,2166.4,13.07715281]
[1773617904412,13.29456524,2167.8,2166.5,0.23075]
[1773617904615,13.29456524,2167.8,2166.6,12.92092146]
[1773617905513,13.29783361,2167.8,2166.6,12.92092146]
[1773617908220,13.52845361,2167.8,2166.6,12.92092146]
[1773617908415,2.49263097,2167.5,2166.4,12.92518759]
[1773617908613,13.29456524,2167.4,2166.4,12.92518759]
[1773617913330,13.29456524,2167.7,2166.6,12.92092146]
[1773617917325,13.29456524,2167.7,2166.8,12.92092146]
[1773617917922,13.29783361,2167.8,2166.8,12.92092146]
[1773617926632,0.00326837,2167.8,2167.0,12.92092146]
[1773617926834,13.29456524,2168.4,2167.0,12.92092146]
[1773617927033,13.29456524,2168.2,2167.0,12.92092146]
[1773617927829,13.29922249,2168.2,2167.0,12.92092146]
[1773617932034,0.00465725,2168.2,2167.4,13.40427461]
[1773617932337,13.1267452,2168.6,2167.4,13.40427461]
[1773617932542,13.1267452,2168.8,2167.6,13.40427461]
[1773617932842,13.1267452,2169.2,2167.8,13.40427461]
[1773617933239,13.13050739,2169.2,2168.0,13.53059812]
[1773617933439,13.13050739,2169.2,2168.0,13.53630213]
[1773617940646,12.98473943,2169.0,2168.0,0.00570401]
[1773617940943,12.98473943,2168.6,2167.3,13.53059812]
[1773617941245,12.98473943,2168.6,2167.2,17.799]
[1773617941246,12.98473943,2168.6,2167.5,13.53059812]
[1773617941446,12.98473943,2169.1,2167.7,13.53059812]
[1773617941744,12.98473943,2169.1,2167.9,13.53059812]
[1773617942246,12.98473943,2168.7,2167.7,13.53059812]
[1773617942445,17.06976219,2169.2,2167.2,17.793]
[1773617942446,12.98473943,2168.5,2167.2,13.53059812]
[1773617943041,12.98473943,2168.5,2167.2,13.76126812]
[1773617943235,12.98473943,2168.5,2167.2,13.76482]
[1773617943739,12.98473943,2168.5,2167.3,13.53059812]
[1773617948448,12.98473943,2168.3,2167.2,13.53415]
[1773617951953,12.98473943,2168.8,2167.4,13.53059812]
[1773617952353,12.98473943,2168.8,2167.6,13.53059812]
[1773617952959,12.98473943,2168.8,2167.7,13.53059812]
[1773617954560,0.00376219,2169.2,2167.6,17.75]
[1773617954561,12.98473943,2169.1,2167.9,13.53059812]
[1773617956357,12.98473943,2169.1,2168.1,13.53059812]
[1773617956559,12.98850162,2169.2,2168.1,13.53059812]
[1773617958066,12.98850162,2169.2,2168.3,13.53059812]
[1773617962267,13.28228389,2169.2,2168.3,13.53059812]
[1773617962470,13.28228389,2169.2,2168.5,12.39454669]
[1773617966878,13.2785217,2169.9,2168.5,12.39454669]
[1773617968079,13.28419043,2169.9,2168.5,12.39454669]
[1773617968672,13.28419043,2169.9,2168.4,17.97254]
[1773617968673,13.28419043,2169.9,2168.7,12.39454669]
[1773617969074,13.64020886,2169.9,2168.7,12.39454669]
[1773617969473,13.64020886,2169.9,2168.8,17.747]
[1773617969670,0.2304,2169.8,2168.8,17.75267737]
[1773617969875,13.2785217,2169.7,2168.8,17.75267737]
[1773617970074,13.2785217,2169.7,2168.8,0.00567737]
[1773617970479,13.2785217,2169.7,2168.8,12.40022406]
[1773617971575,13.2785217,2169.7,2168.8,0.00567737]
[1773617973178,13.2785217,2169.7,2168.8,12.40022406]
[1773617974180,13.2785217,2169.7,2168.8,0.00567737]
[1773617974779,13.2785217,2169.7,2168.8,12.40022406]
[1773617981388,13.2785217,2169.5,2168.6,12.39454669]
[1773617981687,13.2785217,2169.5,2168.3,12.39454669]
[1773617982484,13.2785217,2169.5,2168.3,12.39922655]
[1773617985291,13.2785217,2169.3,2168.3,12.39922655]
[1773617985490,13.2785217,2169.3,2168.5,12.39454669]
[1773617987690,3.99229284,2169.8,2168.5,12.39454669]
[1773617987691,13.2785217,2169.7,2168.5,12.39454669]
[1773617987891,13.2785217,2169.5,2168.5,12.39454669]
[1773617988687,13.2785217,2169.3,2168.6,30.10654669]
[1773617989391,13.2785217,2169.3,2168.7,12.39454669]
[1773617992195,11.20917991,2169.4,2168.7,12.39454669]
[1773617992997,11.20917991,2169.4,2168.9,11.51828658]
[1773617993292,11.20917991,2169.4,2168.8,17.731]
[1773617993493,11.20917991,2169.4,2168.8,29.24928658]
[1773617994196,11.20917991,2169.4,2168.9,11.51828658]
[1773617996494,11.39186108,2169.8,2168.9,11.51828658]
[1773617997693,11.39752981,2169.9,2168.9,11.51828658]
[1773617998294,0.00566873,2169.9,2168.9,11.51828658]
[1773617998490,0.00566873,2169.9,2169.1,11.51828658]
[1773617998690,11.39186108,2170.1,2169.1,11.51828658]
[1773617998893,11.39186108,2170.3,2169.1,11.51828658]
[1773617999493,11.39186108,2170.3,2168.8,17.731]
[1773617999494,11.39186108,2170.3,2169.3,11.51828658]
[1773617999697,11.39645392,2170.3,2169.5,11.51828658]
[1773617999891,11.39186108,2170.9,2169.5,11.51828658]
[1773618000096,11.39186108,2170.7,2169.5,11.51828658]
[1773618000391,11.39186108,2170.5,2169.4,17.754]
[1773618000595,11.39186108,2170.3,2169.4,17.754]
[1773618000890,11.39186108,2170.1,2169.4,17.754]
[1773618002093,11.39186108,2170.1,2169.4,29.27228658]
[1773618002299,0.00431072,2170.3,2169.4,29.27228658]
[1773618002300,11.3961718,2170.3,2169.5,11.51828658]
[1773618002690,11.3961718,2170.3,2169.6,29.27728658]
[1773618003495,11.3961718,2170.3,2169.7,11.51828658]
[1773618004590,11.39186108,2170.5,2169.7,11.51828658]
[1773618004794,11.39186108,2171.0,2169.7,11.51828658]
[1773618004995,11.39186108,2170.8,2169.7,11.51828658]
[1773618005390,11.39186108,2171.2,2169.7,11.51828658]
[1773618005595,11.39186108,2171.0,2169.7,11.51828658]
[1773618006899,11.39186108,2171.0,2169.9,11.51828658]
[1773618007099,11.39186108,2171.0,2169.9,11.52234367]
[1773618008000,11.39186108,2171.0,2169.9,0.00405709]
[1773618008204,11.39186108,2171.0,2169.9,17.74805709]
[1773618008604,11.39186108,2171.0,2169.9,29.26634367]
[1773618011607,11.39186108,2171.0,2170.0,11.51828658]
[1773618012004,7.17504226,2171.7,2170.8,11.51828658]
[1773618012005,2.60779689,2171.7,2170.8,11.51828658]
[1773618012304,17.48315861,2172.7,2169.9,17.74805709]
[1773618012305,11.39186108,2172.9,2171.2,11.51828658]
[1773618012509,11.39186108,2172.5,2171.4,11.51828658]
[1773618012904,11.39695023,2172.5,2171.4,11.51828658]
[1773618016113,11.39186108,2173.2,2171.4,11.51828658]
[1773618016812,13.87931455,2173.2,2171.4,11.51828658]
[1773618017004,14.24171695,2173.2,2171.4,11.51828658]
[1773618017203,11.39186108,2173.1,2171.4,11.51828658]
[1773618020515,0.3624024,2173.2,2171.4,11.51828658]
[1773618020516,11.39186108,2172.6,2171.4,11.51828658]
[1773618020711,0.3624024,2173.2,2171.0,11.51828658]
[1773618020712,11.39186108,2172.2,2171.0,11.51828658]
[1773618022114,13.87931455,2172.2,2170.6,10.27307669]
[1773618022512,11.39186108,2172.2,2170.6,10.27307669]
[1773618023321,13.87931455,2172.2,2170.6,10.04384179]
[1773618023620,10.76495848,2172.0,2170.6,10.04384179]
[1773618024014,13.25241195,2172.0,2170.6,10.04384179]
[1773618026118,10.76495848,2172.0,2170.6,10.04384179]
[1773618029616,13.25241195,2172.0,2170.6,10.04384179]
[1773618029817,9.8,2171.9,2170.6,10.04384179]
[1773618030218,10.76495848,2171.8,2170.6,10.04384179]
[1773618033919,10.76495848,2172.6,2171.0,10.04384179]
[1773618034118,10.76495848,2172.6,2171.2,10.04384179]
[1773618038326,10.76495848,2172.6,2171.3,10.04384179]
[1773618039423,10.76495848,2172.6,2171.6,10.04384179]
[1773618039629,10.76495848,2172.6,2171.6,10.04800505]
[1773618040831,10.76495848,2173.1,2171.6,10.04800505]
[1773618041236,10.76495848,2172.9,2171.6,10.04800505]
[1773618042638,10.76495848,2172.9,2171.7,10.04384179]
[1773618043834,10.76495848,2172.9,2172.0,10.04384179]
[1773618044030,10.76495848,2173.1,2172.1,10.04384179]
[1773618044238,0.00550144,2173.2,2172.3,10.04384179]
[1773618044437,10.76495848,2173.5,2172.3,10.04384179]
[1773618044638,10.76495848,2173.7,2172.6,10.04384179]
[1773618045035,10.76495848,2173.7,2172.8,10.04384179]
[1773618045438,10.76894668,2173.7,2172.8,10.04384179]
[1773618046432,10.76894668,2173.7,2172.6,10.04384179]
[1773618047542,10.76894668,2173.7,2172.6,27.60884179]
[1773618047741,10.76894668,2173.7,2172.7,10.04384179]
[1773618048138,0.0039882,2173.7,2172.7,10.04384179]
[1773618048345,10.76894668,2173.7,2172.7,10.04384179]
[1773618048638,10.76894668,2173.7,2172.8,10.04384179]
[1773618052843,0.0039882,2173.7,2172.8,10.04384179]
[1773618053044,8.87249435,2173.7,2172.8,10.04384179]
[1773618054444,8.87249435,2173.7,2172.9,8.79811693]
[1773618055244,0.0039882,2173.7,2172.9,8.79811693]
[1773618055443,9.25585755,2174.1,2172.9,9.02818693]
[1773618056442,9.26165475,2174.1,2172.9,9.02818693]
[1773618057243,9.26165475,2174.1,2173.1,8.79811693]
[1773618058241,9.25585755,2174.7,2173.8,8.79811693]
[1773618059049,9.25585755,2174.7,2173.9,8.79811693]
[1773618059246,9.25927456,2174.7,2173.9,8.80360157]
[1773618059449,9.25927456,2174.7,2173.9,0.00548464]
[1773618059646,9.25585755,2175.4,2173.9,8.80360157]
[1773618059854,9.25585755,2175.4,2174.1,8.79811693]
[1773618060348,9.25585755,2175.4,2174.2,8.79811693]
[1773618060746,9.2611217,2175.4,2174.2,8.79811693]
[1773618061449,9.2611217,2175.4,2174.4,8.79811693]
[1773618061652,9.25585755,2175.6,2174.6,8.79811693]
[1773618062146,0.34487944,2175.9,2174.6,8.79811693]
[1773618062348,9.25585755,2175.8,2174.6,8.79811693]
[1773618062550,9.26048037,2175.8,2174.6,8.79811693]
[1773618064047,9.25585756,2175.8,2174.8,8.79811693]
[1773618064351,9.25585756,2175.8,2175.0,8.79811693]
[1773618066053,9.25585756,2175.8,2174.5,8.79811693]
[1773618066255,9.25585756,2175.8,2174.7,8.79811693]
[1773618066552,0.35657009,2176.3,2174.5,9.02800693]
[1773618066553,9.25585755,2176.3,2174.5,9.02800693]
[1773618066953,9.59875648,2176.3,2174.5,9.02800693]
[1773618067557,9.60257684,2176.3,2174.7,8.79811693]
[1773618067757,9.60257684,2176.3,2174.8,8.79811693]
[1773618067953,0.22972,2176.2,2174.8,8.79811693]
[1773618068150,9.25585755,2175.9,2174.2,8.79811693]
[1773618069455,9.25585755,2175.3,2174.2,8.79811693]
[1773618069760,9.25585755,2175.3,2174.0,8.79811693]
[1773618070854,9.25585755,2175.1,2173.9,0.00548464]
[1773618073364,9.25585755,2174.9,2173.9,0.00548464]
[1773618075264,9.25585755,2174.7,2173.2,8.79811693]
[1773618075969,9.25585755,2174.3,2173.0,8.79811693]
[1773618076369,9.25929742,2174.3,2173.0,8.80224637]
[1773618079364,9.25929742,2174.3,2173.2,8.79811693]
[1773618079569,0.00343987,2174.3,2173.2,8.79811693]
[1773618080373,0.00343987,2174.3,2173.2,25.30511693]
[1773618080675,9.25585755,2174.7,2173.4,8.79811693]
[1773618081075,9.25585755,2174.7,2173.5,8.79811693]
[1773618081371,9.25585755,2174.7,2173.6,8.79811693]
[1773618081575,9.25960901,2174.7,2173.6,8.79811693]
[1773618081875,9.25960901,2174.7,2173.3,8.79811693]
[1773618083271,8.06011549,2174.5,2173.3,8.79811693]
[1773618085666,8.06011549,2174.5,2173.1,8.12465257]
[1773618085871,0.00375146,2174.7,2173.1,8.12465257]
[1773618085872,8.06011549,2174.3,2173.1,8.12465257]
[1773618090871,8.06011549,2174.3,2173.1,8.35469257]
[1773618091068,8.06011549,2174.6,2173.1,8.35469257]
[1773618091277,0.00375146,2174.7,2173.8,8.12465257]
[1773618091771,8.06386695,2174.7,2173.8,8.12465257]
[1773618092174,8.06386695,2174.7,2173.3,13.84472029]
[1773618092368,8.06386695,2174.7,2173.1,7.4158656]
[1773618092369,8.06386695,2174.7,2173.4,8.12465257]
[1773618092574,0.00375146,2174.7,2173.6,8.12465257]
[1773618092773,8.06386695,2174.7,2173.8,8.12465257]
[1773618095778,8.06011549,2175.1,2174.0,8.12465257]
[1773618096382,8.06011549,2175.1,2174.1,8.12465257]
[1773618096784,8.06337382,2175.1,2174.1,8.12465257]
[1773618098090,8.06337382,2175.1,2173.8,8.12465257]
[1773618098393,8.06337382,2175.1,2173.9,8.12465257]
[1773618104894,20.15503381,2175.9,2173.6,5.73844265]
[1773618104895,8.06011549,2175.3,2174.3,8.12465257]
[1773618105092,8.06011549,2176.1,2174.5,8.12465257]
[1773618105294,8.06011549,2176.1,2174.7,8.12465257]
[1773618105893,8.06352476,2176.1,2174.8,8.12465257]
[1773618106597,8.06352476,2176.1,2175.1,8.12465257]
[1773618109496,8.06352476,2176.1,2175.1,5.73844265]
[1773618109497,0.00340927,2176.1,2175.1,5.73844265]
[1773618109701,0.00340927,2176.1,2175.2,8.12465257]
[1773618110900,8.06011549,2176.4,2175.4,8.12465257]
[1773618111298,17.76090507,2177.4,2175.4,8.12465257]
[1773618111299,8.28971549,2177.4,2175.8,8.12465257]
[1773618111492,8.28971549,2177.4,2175.4,8.12465257]
[1773618111696,8.06011549,2177.1,2175.4,8.12465257]
[1773618111897,8.39985639,2177.1,2175.4,8.12465257]
[1773618113198,8.39985639,2177.1,2175.5,7.11263287]